fUST/lending_fUST_20260128
["ID","MTS","AMOUNT","RATE_DAILY","PERIOD"]
[403861301,1769607032315,-500.0,0.00013718,2]
[403861302,1769607032324,-500.0,0.00013718,2]
[403861303,1769607032334,-500.0,0.00013718,2]
[403861304,1769607032343,-500.0,0.00013718,2]
[403861305,1769607032353,-367.43731665,0.00013718,2]
[403861306,1769607032363,-500.0,0.00013718,2]
[403861307,1769607032373,-500.0,0.00013718,2]
[403861308,1769607032382,-500.0,0.00013718,2]
[403861309,1769607032391,-500.0,0.00013718,2]
[403861310,1769607032402,-500.0,0.00013718,2]
[403861311,1769607032411,-500.0,0.00013718,2]
[403861312,1769607032421,-500.0,0.00013718,2]
[403861313,1769607032431,-523.59254812,0.00013718,2]
[403861314,1769607032440,-500.0,0.00013718,2]
[403861315,1769607032450,-500.0,0.00013718,2]
[403861316,1769607032460,-500.0,0.00013718,2]
[403861317,1769607032469,-500.0,0.00013718,2]
[403861318,1769607032479,-500.0,0.00013718,2]
[403861319,1769607032488,-500.0,0.00013718,2]
[403861320,1769607032499,-500.0,0.00013718,2]
[403861321,1769607032509,-500.0,0.00013718,2]
[403861322,1769607032519,-500.0,0.00013718,2]
[403861323,1769607032529,-500.0,0.00013718,2]
[403861324,1769607032538,-500.0,0.00013718,2]
[403861325,1769607032547,-500.0,0.00013718,2]
[403861326,1769607032560,-500.0,0.00013718,2]
[403861327,1769607032569,-500.0,0.00013718,2]
[403861328,1769607032579,-500.0,0.00013718,2]
[403861329,1769607032588,-500.0,0.00013718,2]
[403861330,1769607032598,-500.0,0.00013718,2]
[403861331,1769607032608,-500.0,0.00013718,2]
[403861332,1769607032618,-500.0,0.00013718,2]
[403861333,1769607032631,-500.0,0.00013718,2]
[403861334,1769607032640,-500.0,0.00013718,2]
[403861335,1769607032650,-500.0,0.00013718,2]
[403861336,1769607032659,-500.0,0.00013718,2]
[403861337,1769607032671,-500.0,0.00013718,2]
[403861338,1769607032680,-500.0,0.00013718,2]
[403861339,1769607032690,-500.0,0.00013718,2]
[403861340,1769607032699,-399.99999999,0.00013718,2]
[403861341,1769607032711,-500.0,0.00013718,2]
[403861342,1769607032721,-500.0,0.00013718,2]
[403861343,1769607032730,-500.0,0.00013718,2]
[403861344,1769607032739,-500.0,0.00013718,2]
[403861345,1769607032749,-500.0,0.00013718,2]
[403861346,1769607032758,-500.0,0.00013718,2]
[403861347,1769607032768,-1082.25,0.00013719,2]
[403861348,1769607032777,-1082.25,0.00013719,2]
[403861349,1769607032786,-1082.25,0.00013719,2]
[403861350,1769607032796,-1082.25,0.00013719,2]
[403861351,1769607032805,-1082.25,0.00013719,2]
[403861352,1769607032814,-1082.25,0.00013719,2]
[403861353,1769607032823,-1082.25,0.00013719,2]
[403861354,1769607032833,-1082.25,0.00013719,2]
[403861355,1769607032843,-1082.25,0.00013719,2]
[403861356,1769607032851,-1082.25,0.00013719,2]
[403861357,1769607032861,-1082.25,0.00013719,2]
[403861358,1769607032871,-1082.25,0.00013719,2]
[403861359,1769607032880,-1082.25,0.00013719,2]
[403861360,1769607032889,-1082.25,0.00013719,2]
[403861361,1769607032899,-1082.25,0.00013719,2]
[403861362,1769607032908,-1082.25,0.00013719,2]
[403861363,1769607032917,-1082.25,0.00013719,2]
[403861364,1769607032926,-1082.25,0.00013719,2]
[403861365,1769607032935,-1082.25,0.00013719,2]
[403861366,1769607032944,-1082.25,0.00013719,2]
[403861367,1769607032953,-1082.25,0.00013719,2]
[403861368,1769607032962,-1082.25,0.00013719,2]
[403861369,1769607032972,-1082.25,0.00013719,2]
[403861370,1769607032981,-1082.25,0.00013719,2]
[403861371,1769607032990,-1082.25,0.00013719,2]
[403861372,1769607033000,-1082.25,0.00013719,2]
[403861373,1769607033009,-1082.25,0.00013719,2]
[403861374,1769607033018,-1082.25,0.00013719,2]
[403861375,1769607033027,-1082.25,0.00013719,2]
[403861376,1769607033037,-1082.25,0.00013719,2]
[403861377,1769607033046,-1082.25,0.00013719,2]
[403861378,1769607033055,-1082.25,0.00013719,2]
[403861379,1769607033065,-1580.24,0.00013719,2]
[403861380,1769607033075,-1000.0,0.00013821,2]
[403861381,1769607033084,-1000.0,0.00013821,2]
[403861382,1769607033095,-1000.0,0.00013821,2]
[403861383,1769607033104,-300.0,0.00013993,2]
[403861384,1769607033113,-300.0,0.00013993,2]
[403861385,1769607033122,-300.0,0.00013993,2]
[403861386,1769607033132,-300.0,0.00013993,2]
[403861387,1769607033141,-300.0,0.00013993,2]
[403861388,1769607033150,-300.0,0.00013993,2]
[403861389,1769607033159,-300.0,0.00013993,2]
[403861390,1769607033169,-300.0,0.00013993,2]
[403861391,1769607033178,-300.0,0.00013993,2]
[403861392,1769607033187,-300.0,0.00013993,2]
[403861393,1769607033197,-300.0,0.00013993,2]
[403861394,1769607033206,-300.0,0.00013993,2]
[403861395,1769607033215,-300.0,0.00013993,2]
[403861396,1769607033225,-300.0,0.00013993,2]
[403861397,1769607033235,-300.0,0.00013993,2]
[403861398,1769607033244,-600.0,0.00013993,2]
[403861399,1769607033253,-152.98,0.00014,2]
[403861400,1769607033269,-302.48697807,0.00014,2]
[403861401,1769607033284,-1000.0,0.00014247,2]
[403861402,1769607033294,-151.0,0.000143,2]
[403861403,1769607033303,-598.04597761,0.00014315,2]
[403861404,1769607033313,-1500.0,0.00014368,2]
[403861405,1769607033322,-1500.0,0.00014368,2]
[403861406,1769607033332,-1500.0,0.00014368,2]
[403861407,1769607033342,-1500.0,0.00014795,2]
[403861408,1769607033352,-152.98,0.000148,2]
[403861409,1769607033362,-1200.0,0.00014839,2]
[403861410,1769607033372,-151.0,0.000149,2]
[403861411,1769607033383,-1330.5351028,0.00014916,2]
[403861412,1769607033393,-2092.436529,0.00014916,2]
[403861413,1769607033403,-2000.0,0.00014916,2]
[403861414,1769607033413,-420.0,0.00014923,2]
[403861415,1769607033423,-38014.23697352,0.0001499,2]
[403861449,1769607037947,-2016.34936963,0.0001499,2]
[403861452,1769607037958,-4035.33248211,0.0001499,2]
[403861454,1769607037969,-3119.86902795,0.0001499,2]
[403861456,1769607037980,-500.0,0.0001499,2]
[403861458,1769607037991,-4641.45431801,0.0001499,2]
[403861465,1769607038044,-47672.75782878,0.0001499,2]
[403861467,1769607038054,-11230.08306976,0.00015,2]
[403861469,1769607038064,-40878.38369255,0.00015,2]
[403861471,1769607038074,-825.99585111,0.00015189,2]
[403861473,1769607038083,-410.10982291,0.00015206,2]
[403861475,1769607038092,-2000.0,0.00015342,2]
[403861477,1769607038102,-720.0,0.00015392,2]
[403861479,1769607038111,-344013.04287791,0.000154,2]
[403861481,1769607038122,-20762.00846269,0.000154,2]
[403861698,1769607040178,-9002.34440588,0.000154,2]
[403861700,1769607040190,-68972.64463672,0.000154,2]
[403861702,1769607040202,-12200.0,0.000154,2]
[403861722,1769607040379,-3e-08,0.000154,2]
[403861991,1769607044208,-550.49864065,0.000154,2]
[403861992,1769607044220,-45847.82981846,0.000154,2]
[403861993,1769607044231,-15115.62100428,0.000154,2]
[403861994,1769607044242,-361549.15400866,0.000154,2]
[403861995,1769607044251,-2007.06964924,0.00015464,2]
[403861996,1769607044260,-151.0,0.000156,2]
[403861997,1769607044270,-152.98,0.000156,2]
[403861998,1769607044279,-2500.0,0.0001589,2]
[403861999,1769607044288,-151.0,0.000162,2]
[403862000,1769607044297,-250.0,0.00016245,2]
[403862001,1769607044306,-152.98,0.000164,2]
[403862002,1769607044315,-200.0,0.00016438,2]
[403862003,1769607044324,-221.06968098,0.00016438,2]
[403862004,1769607044333,-3000.0,0.00016438,2]
[403862005,1769607044343,-160.0,0.00016604,2]
[403862006,1769607044351,-1041.66666667,0.00016604,2]
[403862007,1769607044361,-160.0,0.00016604,2]
[403862008,1769607044369,-347.9562391,0.00016609,2]
[403862009,1769607044379,-825.99585111,0.0001676,2]
[403862010,1769607044389,-151.0,0.000168,2]
[403862011,1769607044398,-864.0,0.00016931,2]
[403862012,1769607044407,-1682.31809279,0.00016986,2]
[403862013,1769607044417,-152.98,0.000172,2]
[403862014,1769607044426,-472.66894844,0.00017206,2]
[403862015,1769607044435,-151.0,0.000175,2]
[403862016,1769607044443,-720.30664514,0.000176,2]
[403862017,1769607044452,-126062.66862741,0.00018,2]
[403862018,1769607044461,-43521.25574867,0.00018082,3]
[403862019,1769607044471,-151.0,0.000181,2]
[403862020,1769607044480,-152.98,0.000181,2]
[403862021,1769607044490,-279.65253593,0.00018274,3]
[403862022,1769607044499,-9548.19578351,0.000183,3]
[403862023,1769607044508,-825.99585111,0.0001833,2]
[403862024,1769607044652,-1000.0,0.00018624,2]
[403862025,1769607044666,-151.0,0.000187,2]
[403862026,1769607044676,-680.55935822,0.00018771,2]
[403862027,1769607044685,-2722.23743288,0.00018771,2]
[403862028,1769607044694,-6125.03422399,0.00018771,2]
[403862029,1769607044704,-962.05971617,0.00018771,2]
[403862030,1769607044714,-3848.23886468,0.00018771,2]
[403862031,1769607044725,-8658.53744553,0.00018771,2]
[403862032,1769607044734,-152.98,0.000189,2]
[403862033,1769607044743,-779.0,0.000189,2]
[403862034,1769607044752,-69497.33252454,0.00019,2]
[403862035,1769607044761,-288.165348,0.00019,2]
[403862036,1769607044771,-2540.3,0.00019178,2]
[403862037,1769607044780,-287.07,0.00019178,2]
[403862038,1769607044790,-508.06,0.00019178,2]
[403862039,1769607044799,-508.06,0.00019178,2]
[403862040,1769607044809,-508.06,0.00019178,2]
[403862041,1769607044819,-151.0,0.00019178,2]
[403862042,1769607044827,-151.0,0.00019178,2]
[403862043,1769607044836,-151.0,0.00019178,2]
[403862044,1769607044846,-151.0,0.00019178,2]
[403862045,1769607044855,-266.479841,0.00019178,2]
[403862046,1769607044866,-716.0,0.00019179,2]
[403862047,1769607044875,-180.381,0.00019179,2]
[403862048,1769607044885,-558.797,0.00019179,2]
[403862049,1769607044895,-418.0,0.00019179,2]
[403862050,1769607044904,-172.01,0.000192,2]
[403862051,1769607044913,-260.27,0.000192,2]
[403862052,1769607044922,-535.22807397,0.00019206,2]
[403862053,1769607044931,-151.0,0.000194,2]
[403862054,1769607044940,-151.0,0.000194,2]
[403862055,1769607044949,-1767.3432737,0.00019581,2]
[403862056,1769607044958,-5087.328647,0.00019593,2]
[403862057,1769607044967,-1043.8687176,0.00019593,2]
[403862058,1769607044976,-152.98,0.000197,2]
[403862059,1769607044985,-108803.05,0.000197,3]
[403862060,1769607044996,-151.0,0.000197,2]
[403862061,1769607045004,-151.0,0.000197,2]
[403862062,1769607045014,-151.0,0.000197,2]
[403862063,1769607045023,-6217.49010681,0.000199,2]
[403862064,1769607045033,-825.99585111,0.000199,2]
[403862065,1769607045042,-214812.18824604,0.0002,2]
[403862066,1769607045054,-24698.48440651,0.0002,2]
[403862097,1769607046133,-23411.49781976,0.0002,2]
[403862099,1769607046144,-1782.03125656,0.0002,2]
[403863965,1769607540098,9023.14794301,0.0003,120]
[403863966,1769607569013,10000.0,0.00034851,120]
[403863971,1769607627111,10000.0,0.00034851,120]
[403864010,1769607670743,10000.0,0.00034851,120]
[403864173,1769608160721,2000.0,0.00030137,120]
[403864196,1769608238083,-473.67259177,0.00011993,2]
[403864197,1769608238094,-331.15876227,0.00012114,2]
[403864198,1769608238104,-238.08,0.00012329,2]
[403864199,1769608238115,-198.4,0.00012329,2]
[403864200,1769608238125,-165.34,0.00012329,2]
[403864201,1769608238134,-826.7,0.00012329,2]
[403864202,1769608238143,-982.7234609,0.00012406,2]
[403864203,1769608238152,-1200.0,0.00013187,2]
[403864204,1769608238161,-300.0,0.00013188,2]
[403864205,1769608238170,-300.0,0.00013188,2]
[403864206,1769608238180,-300.0,0.00013188,2]
[403864207,1769608238189,-300.0,0.00013188,2]
[403864208,1769608238198,-300.0,0.00013189,2]
[403864209,1769608238207,-619.07983052,0.00013189,2]
[403864210,1769608238216,-596.33402809,0.00013189,2]
[403864211,1769608238225,-500.0,0.00013189,2]
[403864212,1769608238234,-500.0,0.00013189,2]
[403864213,1769608238243,-500.0,0.00013189,2]
[403864214,1769608238252,-500.0,0.00013189,2]
[403864215,1769608238261,-500.0,0.00013189,2]
[403864216,1769608238270,-500.0,0.00013189,2]
[403864217,1769608238279,-500.0,0.00013189,2]
[403864218,1769608238289,-500.0,0.00013189,2]
[403864219,1769608238298,-500.0,0.00013189,2]
[403864220,1769608238307,-500.0,0.00013189,2]
[403864221,1769608238316,-500.0,0.00013189,2]
[403864222,1769608238325,-500.0,0.00013189,2]
[403864223,1769608238334,-500.0,0.00013189,2]
[403864224,1769608238343,-500.0,0.00013189,2]
[403864225,1769608238352,-500.0,0.00013189,2]
[403864226,1769608238361,-500.0,0.00013189,2]
[403864227,1769608238370,-500.0,0.00013189,2]
[403864228,1769608238379,-500.0,0.00013189,2]
[403864229,1769608238387,-500.0,0.00013189,2]
[403864230,1769608238396,-500.0,0.00013189,2]
[403864231,1769608238405,-500.0,0.00013189,2]
[403864232,1769608238414,-500.0,0.00013189,2]
[403864233,1769608238423,-500.0,0.00013189,2]
[403864234,1769608238432,-500.0,0.00013189,2]
[403864235,1769608238441,-500.0,0.00013189,2]
[403864236,1769608238451,-500.0,0.00013189,2]
[403864237,1769608238460,-538.48817748,0.00013189,2]
[403864238,1769608238469,-500.0,0.00013189,2]
[403864239,1769608238478,-500.0,0.00013189,2]
[403864240,1769608238487,-500.0,0.00013189,2]
[403864241,1769608238496,-500.0,0.00013189,2]
[403864242,1769608238505,-500.0,0.00013189,2]
[403864243,1769608238515,-500.0,0.00013189,2]
[403864244,1769608238525,-500.0,0.00013189,2]
[403864245,1769608238535,-500.0,0.00013189,2]
[403864246,1769608238545,-500.0,0.00013189,2]
[403864247,1769608238557,-500.0,0.00013189,2]
[403864248,1769608238567,-255.48723322,0.00013189,2]
[403864249,1769608238577,-500.0,0.00013189,2]
[403864250,1769608238587,-303.17887219,0.00013189,2]
[403864251,1769608238598,-500.0,0.00013189,2]
[403864252,1769608238608,-500.0,0.00013189,2]
[403864253,1769608238618,-500.0,0.00013189,2]
[403864254,1769608238628,-500.0,0.00013189,2]
[403864255,1769608238638,-500.0,0.00013189,2]
[403864256,1769608238648,-500.0,0.00013189,2]
[403864257,1769608238657,-500.0,0.00013189,2]
[403864258,1769608238667,-500.0,0.00013189,2]
[403864259,1769608238677,-500.0,0.00013189,2]
[403864260,1769608238686,-500.0,0.00013189,2]
[403864261,1769608238695,-275.84757483,0.00013189,2]
[403864262,1769608238704,-500.0,0.00013189,2]
[403864263,1769608238713,-500.0,0.00013189,2]
[403864264,1769608238723,-500.0,0.00013189,2]
[403864265,1769608238733,-500.0,0.00013189,2]
[403864266,1769608238742,-500.0,0.00013189,2]
[403864267,1769608238751,-500.0,0.00013189,2]
[403864268,1769608238762,-500.0,0.00013189,2]
[403864269,1769608238771,-500.0,0.00013189,2]
[403864270,1769608238781,-500.0,0.00013189,2]
[403864271,1769608238790,-500.0,0.00013189,2]
[403864272,1769608238799,-500.0,0.00013189,2]
[403864273,1769608238809,-500.0,0.00013189,2]
[403864274,1769608238820,-500.0,0.00013189,2]
[403864275,1769608238829,-500.0,0.00013189,2]
[403864276,1769608238839,-500.0,0.00013189,2]
[403864277,1769608238848,-500.0,0.00013189,2]
[403864278,1769608238857,-500.0,0.00013189,2]
[403864279,1769608238866,-500.0,0.00013189,2]
[403864280,1769608238876,-500.0,0.00013189,2]
[403864281,1769608238885,-500.0,0.00013189,2]
[403864282,1769608238895,-500.0,0.00013189,2]
[403864283,1769608238904,-500.0,0.00013189,2]
[403864284,1769608238913,-500.0,0.00013189,2]
[403864285,1769608238923,-500.0,0.00013189,2]
[403864286,1769608238932,-500.0,0.00013189,2]
[403864287,1769608238941,-500.0,0.00013189,2]
[403864288,1769608238951,-500.0,0.00013189,2]
[403864289,1769608238960,-500.0,0.00013189,2]
[403864290,1769608238970,-500.0,0.00013189,2]
[403864291,1769608238979,-500.0,0.00013189,2]
[403864292,1769608238989,-500.0,0.00013189,2]
[403864293,1769608238999,-500.0,0.00013189,2]
[403864294,1769608239009,-500.0,0.00013189,2]
[403864295,1769608239019,-500.0,0.00013189,2]
[403864296,1769608239029,-500.0,0.00013189,2]
[403864297,1769608239039,-500.0,0.00013189,2]
[403864298,1769608239048,-500.0,0.00013189,2]
[403864299,1769608239058,-500.0,0.00013189,2]
[403864300,1769608239067,-500.0,0.00013189,2]
[403864301,1769608239076,-500.0,0.00013189,2]
[403864302,1769608239086,-500.0,0.00013189,2]
[403864303,1769608239095,-500.0,0.00013189,2]
[403864304,1769608239105,-500.0,0.00013189,2]
[403864305,1769608239114,-500.0,0.00013189,2]
[403864306,1769608239124,-500.0,0.00013189,2]
[403864307,1769608239134,-500.0,0.00013189,2]
[403864308,1769608239144,-500.0,0.00013189,2]
[403864309,1769608239153,-500.0,0.00013189,2]
[403864310,1769608239162,-500.0,0.00013189,2]
[403864311,1769608239171,-500.0,0.00013189,2]
[403864312,1769608239180,-500.0,0.00013189,2]
[403864313,1769608239189,-500.0,0.00013189,2]
[403864314,1769608239198,-500.0,0.00013189,2]
[403864315,1769608239207,-500.0,0.00013189,2]
[403864316,1769608239216,-500.0,0.00013189,2]
[403864317,1769608239226,-500.0,0.00013189,2]
[403864318,1769608239235,-500.0,0.00013189,2]
[403864319,1769608239244,-500.0,0.00013189,2]
[403864320,1769608239253,-500.0,0.00013189,2]
[403864321,1769608239262,-500.0,0.00013189,2]
[403864322,1769608239271,-500.0,0.00013189,2]
[403864323,1769608239280,-500.0,0.00013189,2]
[403864324,1769608239289,-500.0,0.00013189,2]
[403864325,1769608239298,-265.92192857,0.00013189,2]
[403864326,1769608239310,-500.0,0.00013189,2]
[403864327,1769608239319,-500.0,0.00013189,2]
[403864328,1769608239329,-500.0,0.00013189,2]
[403864329,1769608239338,-500.0,0.00013189,2]
[403864330,1769608239347,-500.0,0.00013189,2]
[403864331,1769608239356,-341.67723465,0.00013189,2]
[403864332,1769608239365,-500.0,0.00013189,2]
[403864333,1769608239375,-500.0,0.00013189,2]
[403864334,1769608239384,-500.0,0.00013189,2]
[403864335,1769608239393,-500.0,0.00013189,2]
[403864336,1769608239401,-500.0,0.00013189,2]
[403864337,1769608239411,-500.0,0.00013189,2]
[403864338,1769608239420,-500.0,0.00013189,2]
[403864339,1769608239428,-500.0,0.00013189,2]
[403864340,1769608239437,-156.10282258,0.00013189,2]
[403864341,1769608239446,-500.0,0.00013189,2]
[403864342,1769608239455,-500.0,0.00013189,2]
[403864343,1769608239464,-500.0,0.00013189,2]
[403864344,1769608239474,-500.0,0.00013189,2]
[403864345,1769608239482,-500.0,0.00013189,2]
[403864346,1769608239491,-500.0,0.00013189,2]
[403864347,1769608239500,-500.0,0.00013189,2]
[403864348,1769608239509,-500.0,0.00013189,2]
[403864349,1769608239518,-500.0,0.00013189,2]
[403864350,1769608239527,-500.0,0.00013189,2]
[403864351,1769608239536,-500.0,0.00013189,2]
[403864352,1769608239545,-500.0,0.00013189,2]
[403864353,1769608239556,-500.0,0.00013189,2]
[403864354,1769608239565,-500.0,0.00013189,2]
[403864355,1769608239574,-500.0,0.00013189,2]
[403864356,1769608239583,-500.0,0.00013189,2]
[403864357,1769608239593,-500.0,0.00013189,2]
[403864358,1769608239602,-500.0,0.00013189,2]
[403864359,1769608239611,-500.0,0.00013189,2]
[403864360,1769608239620,-500.0,0.00013189,2]
[403864361,1769608239630,-500.0,0.00013189,2]
[403864362,1769608239638,-500.0,0.00013189,2]
[403864363,1769608239647,-500.0,0.00013189,2]
[403864364,1769608239656,-500.0,0.00013189,2]
[403864365,1769608239665,-500.0,0.00013189,2]
[403864366,1769608239674,-500.0,0.00013189,2]
[403864367,1769608239683,-500.0,0.00013189,2]
[403864368,1769608239692,-500.0,0.00013189,2]
[403864369,1769608239701,-500.0,0.00013189,2]
[403864370,1769608239710,-500.0,0.00013189,2]
[403864371,1769608239719,-500.0,0.00013189,2]
[403864372,1769608239728,-500.0,0.00013189,2]
[403864373,1769608239737,-500.0,0.00013189,2]
[403864374,1769608239745,-500.0,0.00013189,2]
[403864375,1769608239755,-500.0,0.00013189,2]
[403864376,1769608239764,-500.0,0.00013189,2]
[403864377,1769608239773,-500.0,0.00013189,2]
[403864378,1769608239782,-500.0,0.00013189,2]
[403864380,1769608239791,-500.0,0.00013189,2]
[403864381,1769608239800,-500.0,0.00013189,2]
[403864382,1769608239810,-284.16772346,0.00013189,2]
[403864383,1769608239819,-500.0,0.00013189,2]
[403864384,1769608239829,-500.0,0.00013189,2]
[403864385,1769608239838,-307.32465872,0.00013189,2]
[403864386,1769608239847,-500.0,0.0001319,2]
[403864387,1769608239856,-28637.35514283,0.00013191,2]
[403864388,1769608239865,-500.0,0.00013273,2]
[403864398,1769608240011,-500.0,0.00013273,2]
[403864401,1769608240021,-500.0,0.00013273,2]
[403864403,1769608240031,-500.0,0.00013273,2]
[403864405,1769608240040,-500.0,0.00013464,2]
[403864406,1769608240049,-170.666616,0.00013548,2]
[403864408,1769608240058,-720.13,0.00013618,2]
[403864411,1769608240067,-720.13,0.00013618,2]
[403864413,1769608240076,-720.13,0.00013618,2]
[403864415,1769608240085,-720.13,0.00013618,2]
[403864417,1769608240094,-720.13,0.00013618,2]
[403864418,1769608240104,-720.13,0.00013618,2]
[403864420,1769608240113,-720.13,0.00013618,2]
[403864422,1769608240122,-720.13,0.00013618,2]
[403864424,1769608240132,-720.13,0.00013618,2]
[403864426,1769608240141,-720.13,0.00013618,2]
[403864429,1769608240151,-720.13,0.00013618,2]
[403864430,1769608240160,-720.13,0.00013618,2]
[403864432,1769608240169,-720.13,0.00013618,2]
[403864434,1769608240178,-720.13,0.00013618,2]
[403864437,1769608240189,-720.13,0.00013618,2]
[403864439,1769608240199,-720.13,0.00013618,2]
[403864441,1769608240208,-720.13,0.00013618,2]
[403864443,1769608240217,-720.13,0.00013618,2]
[403864444,1769608240227,-720.13,0.00013618,2]
[403864447,1769608240238,-720.13,0.00013618,2]
[403864448,1769608240247,-720.13,0.00013618,2]
[403864450,1769608240255,-720.13,0.00013618,2]
[403864452,1769608240265,-720.13,0.00013618,2]
[403864454,1769608240274,-720.13,0.00013618,2]
[403864456,1769608240283,-720.13,0.00013618,2]
[403864458,1769608240293,-720.13,0.00013618,2]
[403864460,1769608240302,-720.13,0.00013618,2]
[403864462,1769608240311,-720.13,0.00013618,2]
[403864464,1769608240321,-846.92,0.00013618,2]
[403864466,1769608240330,-1000.0,0.00013699,2]
[403864468,1769608240339,-500.0,0.00013699,2]
[403864470,1769608240348,-245.94804526,0.00013699,2]
[403864472,1769608240357,-502.89555556,0.00013738,2]
[403864474,1769608240366,-300.0,0.0001389,2]
[403864476,1769608240376,-300.0,0.0001389,2]
[403864478,1769608240384,-300.0,0.0001389,2]
[403864480,1769608240393,-300.0,0.0001389,2]
[403864482,1769608240402,-300.0,0.0001389,2]
[403864484,1769608240412,-300.0,0.0001389,2]
[403864486,1769608240421,-300.0,0.0001389,2]
[403864488,1769608240430,-300.0,0.0001389,2]
[403864490,1769608240439,-300.0,0.0001389,2]
[403864492,1769608240449,-300.0,0.0001389,2]
[403864494,1769608240458,-300.0,0.0001389,2]
[403864496,1769608240467,-300.0,0.0001389,2]
[403864498,1769608240477,-300.0,0.0001389,2]
[403864501,1769608240486,-300.0,0.0001389,2]
[403864502,1769608240495,-300.0,0.0001389,2]
[403864504,1769608240504,-600.0,0.0001389,2]
[403864506,1769608240515,-390.76733948,0.00014114,2]
[403864509,1769608240524,-1000.0,0.00014247,2]
[403864511,1769608240534,-420.0,0.0001446,2]
[403864513,1769608240544,-420.0,0.0001446,2]
[403864515,1769608240555,-420.0,0.0001446,2]
[403864517,1769608240564,-420.0,0.0001446,2]
[403864519,1769608240573,-170.666616,0.00014498,2]
[403864521,1769608240582,-1680.0,0.00014506,2]
[403864523,1769608240591,-420.0,0.00014508,2]
[403864525,1769608240601,-500.0,0.00014795,2]
[403864527,1769608240610,-3447.74820212,0.00015,60]
[403864528,1769608240619,-720.0,0.00015279,2]
[403864530,1769608240631,-170.666616,0.00015449,2]
[403864533,1769608240641,-450.37591669,0.00016114,2]
[403864535,1769608240650,-1041.66666667,0.00016319,2]
[403864536,1769608240659,-160.0,0.00016319,2]
[403864538,1769608240668,-160.0,0.00016319,2]
[403864540,1769608240677,-170.666616,0.00016399,2]
[403864542,1769608240686,-200.0,0.00016438,2]
[403864544,1769608240696,-500.0,0.00016438,2]
[403864546,1769608240705,-170.5780323,0.00016438,2]
[403864549,1769608240715,-175.0,0.0001663,3]
[403864551,1769608240724,-864.0,0.00016807,2]
[403864552,1769608240734,-1000.0,0.00018,5]
[403864554,1769608240743,-509.9844939,0.00018114,2]
[403864556,1769608240752,-1000.0,0.00018487,2]
[403864558,1769608240761,-303.10001603,0.000189,2]
[403864561,1769608240770,-47672.75782878,0.0001899,2]
[403864562,1769608240779,-303.10001604,0.00019089,2]
[403864564,1769608240788,-746.64409723,0.00019576,2]
[403864566,1769608240798,-746.6440972,0.00019657,2]
[403864569,1769608240807,-1388.4196348,0.00019676,2]
[403864571,1769608240817,-746.6440972,0.00019738,2]
[403864573,1769608240826,-746.6440972,0.00019819,2]
[403864574,1769608240835,-2150.0,0.0001983,2]
[403864576,1769608240844,-1369.0,0.0001983,2]
[403864578,1769608240853,-630.0,0.0001983,2]
[403864580,1769608240863,-5738.58404535,0.000199,2]